fUSD/lending_fUSD_20250108
["ID","MTS","AMOUNT","RATE_DAILY","PERIOD"]
[348166525,1736362232204,-1215.3,9.972e-05,2]
[348166526,1736362232214,-993.2,9.972e-05,2]
[348166527,1736362232224,-500.0,9.999e-05,2]
[348166528,1736362232234,-500.0,9.999e-05,2]
[348166529,1736362232243,-500.0,9.999e-05,2]
[348166530,1736362232253,-500.0,9.999e-05,2]
[348166531,1736362232265,-173.29,9.999e-05,2]
[348166532,1736362232274,-500.0,0.00010072,2]
[348166533,1736362232283,-10533.3818,0.00010073,2]
[348166534,1736362232293,-500.0,0.00010172,2]
[348166535,1736362232303,-500.0,0.00010172,2]
[348166536,1736362232312,-500.0,0.00010172,2]
[348166537,1736362232322,-498.37823378,0.00010172,2]
[348166538,1736362232331,-500.0,0.00010172,2]
[348166539,1736362232341,-513.46168575,0.00010172,2]
[348166540,1736362232351,-502.31936556,0.00010172,2]
[348166541,1736362232361,-313.91607513,0.00010172,2]
[348166542,1736362232371,-376.02437467,0.00010172,2]
[348166543,1736362232380,-500.75054135,0.00010172,2]
[348166544,1736362232390,-500.0,0.00010172,2]
[348166545,1736362232399,-565.94694551,0.00010172,2]
[348166546,1736362232409,-500.0,0.00010172,2]
[348166547,1736362232418,-500.77182086,0.00010172,2]
[348166548,1736362232428,-500.0,0.00010172,2]
[348166549,1736362232437,-500.44863121,0.00010172,2]
[348166550,1736362232446,-500.38425555,0.00010172,2]
[348166551,1736362232456,-500.0,0.00010172,2]
[348166552,1736362232464,-500.41095643,0.00010172,2]
[348166553,1736362232474,-500.0,0.00010172,2]
[348166554,1736362232484,-500.0,0.00010172,2]
[348166555,1736362232494,-500.57132054,0.00010172,2]
[348166556,1736362232503,-500.0,0.00010172,2]
[348166557,1736362232512,-570.45412714,0.00010172,2]
[348166558,1736362232521,-500.0,0.00010172,2]
[348166559,1736362232531,-658.68,0.00010172,2]
[348166560,1736362232540,-500.0,0.00010172,2]
[348166561,1736362232550,-496.55287033,0.00010172,2]
[348166562,1736362232569,-500.0,0.00010172,2]
[348166563,1736362232579,-500.0,0.00010172,2]
[348166564,1736362232589,-500.0,0.00010172,2]
[348166565,1736362232599,-500.0,0.00010172,2]
[348166566,1736362232609,-478.59621757,0.00010172,2]
[348166567,1736362232618,-500.0,0.00010172,2]
[348166568,1736362232628,-500.0,0.00010172,2]
[348166569,1736362232638,-500.25092334,0.00010172,2]
[348166570,1736362232647,-500.0,0.00010172,2]
[348166571,1736362232657,-289.74907482,0.00010172,2]
[348166572,1736362232667,-500.0,0.00010172,2]
[348166573,1736362232677,-500.0,0.00010172,2]
[348166574,1736362232686,-500.0,0.00010172,2]
[348166575,1736362232695,-500.0,0.00010172,2]
[348166576,1736362232705,-500.0,0.00010172,2]
[348166577,1736362232715,-801.18,0.00010172,2]
[348166578,1736362232724,-417.27389213,0.00010172,2]
[348166579,1736362232734,-500.0,0.00010172,2]
[348166580,1736362232743,-500.0,0.00010172,2]
[348166581,1736362232753,-500.0,0.00010172,2]
[348166582,1736362232762,-303.46916836,0.00010172,2]
[348166583,1736362232773,-701.9,0.00010172,2]
[348166584,1736362232783,-500.0,0.00010172,2]
[348166585,1736362232792,-500.0,0.00010172,2]
[348166586,1736362232802,-500.0,0.00010172,2]
[348166587,1736362232812,-500.0,0.00010172,2]
[348166588,1736362232821,-609.7,0.00010172,2]
[348166589,1736362232831,-500.0,0.00010172,2]
[348166590,1736362232841,-500.0,0.00010172,2]
[348166591,1736362232851,-693.7,0.00010172,2]
[348166592,1736362232861,-500.0,0.00010172,2]
[348166593,1736362232871,-500.0,0.00010172,2]
[348166594,1736362232880,-500.0,0.00010172,2]
[348166595,1736362232889,-500.0,0.00010172,2]
[348166596,1736362232899,-718.53,0.00010172,2]
[348166597,1736362232909,-500.0,0.00010172,2]
[348166598,1736362232919,-454.89388196,0.00010172,2]
[348166599,1736362232929,-500.0,0.00010172,2]
[348166600,1736362232939,-500.0,0.00010172,2]
[348166601,1736362232948,-500.0,0.00010172,2]
[348166602,1736362232959,-500.0,0.00010172,2]
[348166603,1736362232969,-359.7843226,0.00010172,2]
[348166604,1736362232979,-144.89344087,0.00010172,2]
[348166605,1736362233033,-358.35358244,0.00010172,2]
[348166606,1736362233047,-280.80297669,0.00010172,2]
[348166607,1736362233057,-581.64809109,0.00010172,2]
[348166608,1736362233067,-500.53353175,0.00010172,2]
[348166609,1736362233077,-557.73,0.00010172,2]
[348166610,1736362233087,-500.0,0.00010172,2]
[348166611,1736362233098,-500.0,0.00010172,2]
[348166612,1736362233108,-500.0,0.00010172,2]
[348166613,1736362233118,-500.0,0.00010172,2]
[348166614,1736362233128,-500.0,0.00010172,2]
[348166615,1736362233139,-566.57204047,0.00010172,2]
[348166616,1736362233151,-31.36445004,0.00010172,2]
[348166617,1736362233161,-303.42249718,0.00010172,2]
[348166618,1736362233174,-256.78750282,0.00010172,2]
[348166619,1736362233184,-500.0,0.00010172,2]
[348166620,1736362233193,-500.0,0.00010172,2]
[348166621,1736362233204,-500.0,0.00010172,2]
[348166622,1736362233214,-27.30670497,0.00010172,2]
[348166623,1736362233241,-472.69329503,0.00010172,2]
[348166624,1736362233251,-509.97558534,0.00010172,2]
[348166625,1736362233261,-445.55798972,0.00010172,2]
[348166626,1736362233277,-54.44201028,0.00010172,2]
[348166627,1736362233287,-500.0,0.00010172,2]
[348166628,1736362233297,-166.18496426,0.00010172,2]
[348166629,1736362233307,-502.87625818,0.00010172,2]
[348166630,1736362233317,-500.0,0.00010172,2]
[348166631,1736362233327,-500.0,0.00010172,2]
[348166632,1736362233336,-500.0,0.00010172,2]
[348166633,1736362233346,-642.81,0.00010172,2]
[348166634,1736362233358,-500.0,0.00010172,2]
[348166635,1736362233368,-588.83257426,0.00010172,2]
[348166636,1736362233380,-500.0,0.00010172,2]
[348166637,1736362233390,-500.0,0.00010172,2]
[348166638,1736362233400,-501.27876687,0.00010172,2]
[348166639,1736362233409,-956.3,0.00010172,2]
[348166640,1736362233420,-153.14791083,0.00010172,2]
[348166641,1736362233430,-500.0,0.00010172,2]
[348166642,1736362233439,-500.0,0.00010172,2]
[348166643,1736362233449,-500.0,0.00010172,2]
[348166644,1736362233459,-501.34700813,0.00010172,2]
[348166645,1736362233469,-250.58279796,0.00010172,2]
[348166646,1736362233479,-500.0,0.00010172,2]
[348166647,1736362233489,-500.0,0.00010172,2]
[348166648,1736362233499,-500.0,0.00010172,2]
[348166649,1736362233509,-501.35526751,0.00010172,2]
[348166650,1736362233521,-512.19931645,0.00010172,2]
[348166651,1736362233531,-500.0,0.00010172,2]
[348166652,1736362233541,-500.0,0.00010172,2]
[348166653,1736362233551,-500.0,0.00010172,2]
[348166654,1736362233561,-500.0,0.00010172,2]
[348166655,1736362233571,-500.0,0.00010172,2]
[348166656,1736362233581,-500.32570286,0.00010172,2]
[348166657,1736362233591,-500.0,0.00010172,2]
[348166658,1736362233602,-603.91,0.00010172,2]
[348166659,1736362233612,-500.0,0.00010172,2]
[348166660,1736362233622,-308.49014673,0.00010172,2]
[348166661,1736362233633,-500.0,0.00010172,2]
[348166662,1736362233643,-178.03313141,0.00010172,2]
[348166663,1736362233653,-500.0,0.00010172,2]
[348166664,1736362233663,-500.0,0.00010172,2]
[348166665,1736362233673,-1933.32,0.00010172,2]
[348166666,1736362233683,-500.0,0.00010172,2]
[348166667,1736362233693,-500.0,0.00010172,2]
[348166668,1736362233703,-500.0,0.00010172,2]
[348166669,1736362233713,-500.0,0.00010172,2]
[348166670,1736362233723,-500.0,0.00010172,2]
[348166671,1736362233733,-500.0,0.00010172,2]
[348166672,1736362233743,-657.09,0.00010172,2]
[348166673,1736362233753,-501.28939028,0.00010172,2]
[348166674,1736362233763,-576.46,0.00010172,2]
[348166675,1736362233777,-666.44,0.00010172,2]
[348166676,1736362233787,-500.0,0.00010172,2]
[348166677,1736362233798,-557.98468489,0.00010172,2]
[348166678,1736362233807,-501.45983535,0.00010172,2]
[348166679,1736362233817,-554.61,0.00010172,2]
[348166680,1736362233827,-221.70140805,0.00010172,2]
[348166681,1736362233837,-582.56445231,0.00010172,2]
[348166682,1736362233848,-263.98970967,0.00010172,2]
[348166683,1736362233858,-500.0,0.00010172,2]
[348166684,1736362233868,-500.0,0.00010172,2]
[348166685,1736362233878,-500.0,0.00010172,2]
[348166686,1736362233888,-2827.12,0.00010172,2]
[348166687,1736362233899,-2174.44720228,0.00010172,2]
[348166688,1736362233913,-203.69279772,0.00010172,2]
[348166689,1736362233927,-1628.91,0.00010172,2]
[348166690,1736362233936,-590.58,0.00010172,2]
[348166691,1736362233946,-293.07896265,0.00010172,2]
[348166692,1736362233957,-500.0,0.00010172,2]
[348166693,1736362233968,-2603.36,0.00010172,2]
[348166694,1736362233978,-191.91519275,0.00010172,2]
[348166695,1736362233989,-1087.38,0.00010172,2]
[348166696,1736362234001,-500.0,0.00010172,2]
[348166697,1736362234012,-500.0,0.00010172,2]
[348166698,1736362234029,-500.0,0.00010172,2]
[348166699,1736362234039,-501.52093346,0.00010172,2]
[348166700,1736362234050,-500.0,0.00010172,2]
[348166701,1736362234060,-500.0,0.00010172,2]
[348166702,1736362234071,-3082.77,0.00010172,2]
[348166703,1736362234082,-500.0,0.00010172,2]
[348166704,1736362234093,-500.0,0.00010172,2]
[348166705,1736362234103,-500.72818639,0.00010172,2]
[348166706,1736362234113,-573.65,0.00010172,2]
[348166707,1736362234123,-500.0,0.00010172,2]
[348166708,1736362234134,-787.24,0.00010172,2]
[348166709,1736362234144,-500.0,0.00010172,2]
[348166710,1736362234155,-500.0,0.00010172,2]
[348166711,1736362234165,-500.0,0.00010172,2]
[348166712,1736362234175,-1301.03,0.00010172,2]
[348166713,1736362234185,-1988.72,0.00010172,2]
[348166714,1736362234196,-500.0,0.00010172,2]
[348166715,1736362234206,-500.0,0.00010172,2]
[348166716,1736362234218,-501.65621525,0.00010172,2]
[348166717,1736362234228,-500.0,0.00010172,2]
[348166718,1736362234239,-500.0,0.00010172,2]
[348166719,1736362234249,-500.0,0.00010172,2]
[348166720,1736362234261,-500.0,0.00010172,2]
[348166721,1736362234276,-500.0,0.00010172,2]
[348166722,1736362234287,-500.94234092,0.00010172,2]
[348166723,1736362234298,-500.0,0.00010172,2]
[348166724,1736362234309,-500.0,0.00010172,2]
[348166725,1736362234320,-1555.02,0.00010172,2]
[348166726,1736362234331,-500.0,0.00010172,2]
[348166727,1736362234341,-500.0,0.00010172,2]
[348166728,1736362234351,-502.98255748,0.00010172,2]
[348166729,1736362234362,-159.78400911,0.00010172,2]
[348166730,1736362234374,-500.0,0.00010172,2]
[348166731,1736362234384,-501.67341642,0.00010172,2]
[348166732,1736362234394,-500.0,0.00010172,2]
[348166733,1736362234404,-1430.04,0.00010172,2]
[348166734,1736362234414,-500.0,0.00010172,2]
[348166735,1736362234423,-500.0,0.00010172,2]
[348166736,1736362234433,-500.0,0.00010172,2]
[348166737,1736362234443,-500.0,0.00010172,2]
[348166738,1736362234454,-981.86,0.00010172,2]
[348166739,1736362234464,-500.0,0.00010172,2]
[348166740,1736362234474,-500.0,0.00010172,2]
[348166741,1736362234484,-500.0,0.00010172,2]
[348166742,1736362234494,-500.0,0.00010172,2]
[348166743,1736362234504,-1072.98,0.00010172,2]
[348166744,1736362234513,-692.07,0.00010172,2]
[348166745,1736362234526,-500.0,0.00010172,2]
[348166746,1736362234536,-500.0,0.00010172,2]
[348166747,1736362234546,-539.67104774,0.00010172,2]
[348166748,1736362234555,-657.45,0.00010172,2]
[348166749,1736362234567,-948.96,0.00010172,2]
[348166750,1736362234577,-500.0,0.00010172,2]
[348166751,1736362234586,-553.15,0.00010172,2]
[348166752,1736362234596,-500.0,0.00010172,2]
[348166753,1736362234605,-500.0,0.00010172,2]
[348166754,1736362234615,-500.0,0.00010172,2]
[348166755,1736362234625,-500.0,0.00010172,2]
[348166756,1736362234635,-500.0,0.00010172,2]
[348166757,1736362234644,-2333.81,0.00010172,2]
[348166758,1736362234653,-500.0,0.00010172,2]
[348166759,1736362234663,-500.0,0.00010172,2]
[348166760,1736362234672,-500.0,0.00010172,2]
[348166761,1736362234682,-500.0,0.00010172,2]
[348166762,1736362234691,-500.0,0.00010172,2]
[348166763,1736362234701,-762.73,0.00010172,2]
[348166764,1736362234710,-500.0,0.00010172,2]
[348166765,1736362234721,-500.0,0.00010172,2]
[348166766,1736362234731,-500.0,0.00010172,2]
[348166767,1736362234740,-500.0,0.00010172,2]
[348166768,1736362234750,-500.0,0.00010172,2]
[348166769,1736362234759,-500.0,0.00010172,2]
[348166770,1736362234771,-688.07,0.00010172,2]
[348166771,1736362234781,-500.0,0.00010172,2]
[348166772,1736362234790,-500.0,0.00010172,2]
[348166773,1736362234800,-500.0,0.00010172,2]
[348166774,1736362234809,-500.0,0.00010172,2]
[348166775,1736362234819,-500.0,0.00010172,2]
[348166776,1736362234830,-500.0,0.00010172,2]
[348166777,1736362234839,-338.34346103,0.00010172,2]
[348166778,1736362234852,-161.65653897,0.00010172,2]
[348166779,1736362234862,-2329.942514,0.00010172,2]
[348166780,1736362234871,-500.0,0.00010172,2]
[348166781,1736362234880,-500.0,0.00010172,2]
[348166782,1736362234890,-1310.72,0.00010172,2]
[348166783,1736362234899,-500.0,0.00010172,2]
[348166784,1736362234910,-1030.81,0.00010172,2]
[348166785,1736362234923,-500.0,0.00010172,2]
[348166786,1736362234932,-2618.54,0.00010172,2]
[348166787,1736362234942,-500.0,0.00010172,2]
[348166788,1736362234952,-500.0,0.00010172,2]
[348166789,1736362234963,-500.0,0.00010172,2]
[348166790,1736362234972,-511.55296013,0.00010172,2]
[348166791,1736362234981,-2072.313167,0.00010172,2]
[348166792,1736362234990,-1325.27,0.00010172,2]
[348166793,1736362235001,-500.0,0.00010172,2]
[348166794,1736362235012,-621.86,0.00010172,2]
[348166795,1736362235025,-500.0,0.00010172,2]
[348166796,1736362235034,-500.0,0.00010172,2]
[348166797,1736362235044,-500.0,0.00010172,2]
[348166798,1736362235053,-500.0,0.00010172,2]
[348166799,1736362235062,-500.0,0.00010172,2]
[348166800,1736362235072,-500.0,0.00010172,2]
[348166801,1736362235081,-500.0,0.00010172,2]
[348166802,1736362235091,-3041.28,0.00010172,2]
[348166803,1736362235101,-993.19,0.00010172,2]
[348166804,1736362235111,-40803.91390738,0.00010173,2]
[348166805,1736362235123,-87793.15258431,0.00010173,2]
[348166806,1736362235135,-1983.01705708,0.00010173,2]
[348166810,1736362237621,-1014.08,9.563e-05,2]
[348166813,1736362237630,-1664.79,0.00010172,2]
[348166815,1736362237640,-196.6,0.00010172,2]
[348166817,1736362237649,-500.0,0.00010172,2]
[348166819,1736362237659,-500.0,0.00010172,2]
[348166820,1736362237668,-500.0,0.00010172,2]
[348166821,1736362237677,-500.0,0.00010172,2]
[348166822,1736362237686,-500.0,0.00010172,2]
[348166823,1736362237695,-6713.23039857,0.00010173,2]
[348166824,1736362237781,-11236.76840344,0.00010173,2]
[348166825,1736362237793,-90163.41754733,0.00010173,2]
[348166826,1736362237802,-500.0,0.00010173,2]
[348166827,1736362237811,-502.81,0.00010173,2]
[348166828,1736362237820,-500.0,0.00010173,2]
[348166829,1736362237830,-500.0,0.00010173,2]
[348166830,1736362237840,-500.0,0.00010173,2]
[348166831,1736362237849,-500.0,0.00010173,2]
[348166832,1736362237858,-500.0,0.00010173,2]
[348166833,1736362237867,-500.0,0.00010173,2]
[348166834,1736362237877,-500.0,0.00010173,2]
[348166835,1736362237887,-621.0,0.00010173,2]
[348166836,1736362237896,-172.09347775,0.00010173,2]
[348166837,1736362237906,-500.0,0.00010173,2]
[348166838,1736362237917,-500.0,0.00010173,2]
[348166839,1736362237928,-500.0,0.00010173,2]
[348166840,1736362237939,-500.0,0.00010173,2]
[348166841,1736362237950,-500.0,0.00010173,2]
[348166842,1736362237961,-500.0,0.00010173,2]
[348166843,1736362237971,-578.10602452,0.00010173,2]
[348166844,1736362237980,-500.0,0.00010173,2]
[348166845,1736362237989,-500.0,0.00010173,2]
[348166846,1736362238000,-316.69,0.00010173,2]
[348166847,1736362238012,-500.0,0.00010173,2]
[348166848,1736362238022,-630.7878249,0.00010173,2]
[348166849,1736362238032,-500.0,0.00010173,2]
[348166850,1736362238041,-500.0,0.00010173,2]
[348166851,1736362238050,-500.0,0.00010173,2]
[348166852,1736362238060,-500.0,0.00010173,2]
[348166853,1736362238070,-500.0,0.00010173,2]
[348166854,1736362238080,-500.0,0.00010173,2]
[348166855,1736362238091,-500.0,0.00010173,2]
[348166856,1736362238101,-500.0,0.00010173,2]
[348166857,1736362238110,-500.0,0.00010173,2]
[348166859,1736362238120,-552.42,0.00010173,2]
[348166861,1736362238130,-608.48,0.00010173,2]
[348166863,1736362238140,-500.0,0.00010173,2]
[348166865,1736362238150,-500.0,0.00010173,2]
[348166867,1736362238159,-500.0,0.00010173,2]
[348166869,1736362238168,-720.65,0.00010173,2]
[348166871,1736362238178,-500.0,0.00010173,2]
[348166873,1736362238187,-500.0,0.00010173,2]
[348166875,1736362238196,-500.0,0.00010173,2]
[348166877,1736362238205,-500.0,0.00010173,2]
[348166879,1736362238215,-307.6,0.00010173,2]
[348166881,1736362238224,-500.0,0.00010173,2]
[348166883,1736362238233,-500.0,0.00010173,7]
[348166884,1736362238244,-500.0,0.00010173,2]
[348166886,1736362238252,-506.90764995,0.00010173,2]
[348166888,1736362238262,-500.0,0.00010173,2]
[348166890,1736362238273,-500.0,0.00010173,2]
[348166892,1736362238282,-500.0,0.00010173,2]
[348166894,1736362238292,-256.25124528,0.00010173,2]
[348166896,1736362238302,-500.0,0.00010173,2]
[348166898,1736362238311,-500.0,0.00010173,2]
[348166900,1736362238321,-558.06,0.00010173,2]
[348166903,1736362238330,-500.0,0.00010173,2]
[348166906,1736362238341,-500.0,0.00010173,2]
[348166909,1736362238351,-500.0,0.00010173,2]
[348166912,1736362238361,-500.0,0.00010173,2]
[348166915,1736362238372,-515.11272573,0.00010173,2]
[348166917,1736362238382,-500.0,0.00010173,2]
[348166919,1736362238391,-500.0,0.00010173,2]
[348166921,1736362238400,-500.0,0.00010173,2]
[348166923,1736362238409,-257.95926261,0.00010173,2]
[348166925,1736362238418,-500.0,0.00010173,2]
[348166927,1736362238428,-500.0,0.00010173,2]
[348166929,1736362238437,-500.0,0.00010173,2]
[348166931,1736362238447,-504.19744999,0.00010173,2]
[348166933,1736362238456,-500.0,0.00010173,2]
[348166935,1736362238465,-575.34,0.00010173,2]
[348166937,1736362238475,-500.0,0.00010173,2]
[348166939,1736362238484,-500.0,0.00010173,2]
[348166941,1736362238493,-500.0,0.00010173,2]
[348166943,1736362238502,-500.0,0.00010173,2]
[348166945,1736362238512,-500.0,0.00010173,2]
[348166946,1736362238522,-500.0,0.00010173,2]
[348166948,1736362238532,-500.0,0.00010173,2]
[348166950,1736362238541,-500.0,0.00010173,2]
[348166952,1736362238551,-500.0,0.00010173,2]
[348166954,1736362238560,-500.0,0.00010173,2]
[348166956,1736362238569,-500.0,0.00010173,2]
[348166958,1736362238581,-500.0,0.00010173,2]
[348166960,1736362238590,-500.0,0.00010173,2]
[348166963,1736362238600,-374.01011871,0.00010173,2]
[348166965,1736362238609,-624.94,0.00010173,2]
[348166967,1736362238620,-500.0,0.00010173,2]
[348166968,1736362238630,-500.0,0.00010173,2]
[348166971,1736362238639,-495.81721314,0.00010173,2]
[348166972,1736362238648,-613.5,0.00010173,2]
[348166974,1736362238658,-665.75,0.00010173,2]
[348166977,1736362238667,-659.93,0.00010173,2]
[348166979,1736362238677,-500.0,0.00010173,2]
[348166981,1736362238686,-500.0,0.00010173,2]
[348166982,1736362238696,-500.0,0.00010173,2]
[348166984,1736362238705,-500.0,0.00010173,2]
[348166986,1736362238714,-645.0072589,0.00010173,2]
[348166989,1736362238724,-500.0,0.00010173,2]
[348166990,1736362238733,-500.0,0.00010173,2]
[348166992,1736362238742,-500.0,0.00010173,2]
[348166994,1736362238751,-500.0,0.00010173,2]
[348166996,1736362238760,-500.0,0.00010173,2]
[348166998,1736362238770,-500.0,0.00010173,2]
[348167000,1736362238780,-500.0,0.00010173,2]
[348167002,1736362238790,-500.0,0.00010173,2]
[348167005,1736362238800,-500.0,0.00010173,2]
[348167006,1736362238809,-500.0,0.00010173,2]
[348167008,1736362238819,-500.0,0.00010173,2]
[348167011,1736362238829,-500.0,0.00010173,2]
[348167012,1736362238839,-500.0,0.00010173,2]
[348167015,1736362238848,-500.0,0.00010173,2]
[348167017,1736362238858,-500.0,0.00010173,2]
[348167019,1736362238868,-325.25,0.00010173,2]
[348167021,1736362238877,-500.0,0.00010173,2]
[348167023,1736362238887,-579.24,0.00010173,2]
[348167025,1736362238896,-500.0,0.00010173,2]
[348167026,1736362238905,-500.0,0.00010173,2]
[348167028,1736362238919,-500.0,0.00010173,2]
[348167030,1736362238928,-500.0,0.00010173,2]
[348167033,1736362238938,-506.18962622,0.00010173,2]
[348167035,1736362238948,-500.0,0.00010173,2]
[348167037,1736362238958,-506.27369741,0.00010173,2]
[348167039,1736362238968,-500.0,0.00010173,2]
[348167041,1736362238977,-500.0,0.00010173,2]
[348167042,1736362238988,-500.0,0.00010173,2]
[348167045,1736362238997,-500.0,0.00010173,2]
[348167047,1736362239007,-500.0,0.00010173,2]
[348167048,1736362239016,-500.0,0.00010173,2]
[348167050,1736362239028,-500.0,0.00010173,2]
[348167053,1736362239038,-500.0,0.00010173,2]
[348167054,1736362239048,-500.0,0.00010173,2]
[348167057,1736362239057,-500.0,0.00010173,2]
[348167059,1736362239067,-500.0,0.00010173,2]
[348167061,1736362239078,-500.0,0.00010173,2]
[348167063,1736362239089,-500.0,0.00010173,2]
[348167065,1736362239098,-500.0,0.00010173,2]
[348167067,1736362239107,-506.44241781,0.00010173,2]
[348167069,1736362239116,-1462.34,0.00010173,2]
[348167071,1736362239126,-500.0,0.00010173,2]
[348167073,1736362239135,-757.86,0.00010173,2]
[348167075,1736362239145,-500.0,0.00010173,2]
[348167077,1736362239154,-701.16,0.00010173,2]
[348167079,1736362239164,-2580.23,0.00010173,2]
[348167081,1736362239174,-500.0,0.00010173,2]
[348167083,1736362239184,-628.18,0.00010173,2]
[348167085,1736362239194,-500.0,0.00010173,2]
[348167087,1736362239204,-500.0,0.00010173,2]
[348167089,1736362239213,-500.0,0.00010173,2]
[348167091,1736362239223,-500.0,0.00010173,2]
[348167093,1736362239233,-11260.9875,0.00010207,2]
[348167095,1736362239242,-1215.3,0.00010246,2]
[348167097,1736362239252,-993.2,0.00010246,2]
[348167099,1736362239262,-1000.0,0.00010284,2]
[348167101,1736362239273,-503.86448063,0.00010307,2]
[348167102,1736362239282,-500.78585461,0.00010307,2]
[348167104,1736362239292,-503.30992833,0.00010307,2]
[348167105,1736362239302,-622.10170607,0.00010307,2]
[348167106,1736362239311,-639.90165029,0.00010307,2]
[348167107,1736362239321,-198.17610873,0.00010307,2]
[348167108,1736362239331,-500.0,0.00010307,2]
[348167109,1736362239340,-501.29034013,0.00010307,2]
[348167110,1736362239350,-500.21047694,0.00010307,2]
[348167111,1736362239363,-502.02745025,0.00010307,2]
[348167112,1736362239374,-206.86468456,0.00010307,2]
[348167113,1736362239383,-500.0,0.00010307,2]
[348167114,1736362239393,-209.36669765,0.00010307,2]
[348167115,1736362239403,-500.0,0.00010307,2]
[348167117,1736362239413,-500.0,0.00010307,2]
[348167119,1736362239422,-500.0,0.00010307,2]
[348167121,1736362239432,-500.36449735,0.00010307,2]
[348167123,1736362239441,-502.51519698,0.00010307,2]
[348167125,1736362239451,-500.57455814,0.00010307,2]
[348167127,1736362239460,-501.12418719,0.00010307,2]
[348167129,1736362239470,-500.0,0.00010307,2]
[348167131,1736362239480,-500.0,0.00010307,2]
[348167133,1736362239490,-500.0,0.00010307,2]
[348167135,1736362239500,-500.21467182,0.00010307,2]
[348167137,1736362239509,-500.0,0.00010307,2]
[348167139,1736362239518,-500.64129024,0.00010307,2]
[348167141,1736362239530,-500.0,0.00010307,2]
[348167143,1736362239539,-500.0,0.00010307,2]
[348167145,1736362239548,-500.0,0.00010307,2]
[348167147,1736362239557,-500.0,0.00010307,2]
[348167150,1736362239566,-500.0,0.00010307,2]
[348167152,1736362239576,-500.0,0.00010307,2]
[348167154,1736362239586,-500.0,0.00010307,2]
[348167156,1736362239595,-500.0,0.00010307,2]
[348167158,1736362239605,-500.0,0.00010307,2]
[348167161,1736362239615,-500.0,0.00010307,2]
[348167164,1736362239624,-500.0,0.00010307,2]
[348167166,1736362239634,-502.93717511,0.00010307,2]
[348167168,1736362239643,-500.0,0.00010307,2]
[348167170,1736362239652,-500.81129647,0.00010307,2]
[348167172,1736362239662,-500.53493488,0.00010307,2]
[348167174,1736362239671,-503.74058686,0.00010307,2]
[348167176,1736362239680,-500.46047113,0.00010307,2]
[348167178,1736362239689,-301.66733362,0.00010307,2]
[348167180,1736362239699,-501.58616187,0.00010307,2]
[348167182,1736362239708,-500.0,0.00010307,2]
[348167184,1736362239717,-502.04273035,0.00010307,2]
[348167185,1736362239729,-500.0,0.00010307,2]
[348167188,1736362239738,-502.08340075,0.00010307,2]
[348167190,1736362239748,-502.82261065,0.00010307,2]
[348167192,1736362239760,-502.69058578,0.00010307,2]
[348167194,1736362239769,-503.69044292,0.00010307,2]
[348167196,1736362239780,-500.29862436,0.00010307,2]
[348167198,1736362239789,-500.0,0.00010307,2]
[348167200,1736362239799,-616.38764511,0.00010307,2]
[348167201,1736362239809,-502.19373558,0.00010307,2]